fUSD/lending_fUSD_20251017
["ID","MTS","AMOUNT","RATE_DAILY","PERIOD"]
[391676977,1760725849759,-268.16,0.00035682,17]
[391676979,1760725849769,-500.0,0.00035682,17]
[391676981,1760725849778,-500.0,0.00035682,17]
[391676983,1760725849787,-500.0,0.00035682,17]
[391676985,1760725849797,-606.74,0.00035682,17]
[391676987,1760725849806,-1000.0,0.00035682,17]
[391676989,1760725849816,-500.0,0.00035682,17]
[391676992,1760725849827,-500.0,0.00035682,17]
[391676994,1760725849836,-500.0,0.00035682,17]
[391676996,1760725849845,-500.0,0.00035682,17]
[391676998,1760725849854,-500.0,0.00035682,17]
[391677000,1760725849863,-500.0,0.00035682,17]
[391677002,1760725849872,-500.0,0.00035682,17]
[391677004,1760725849881,-500.0,0.00035732,2]
[391677006,1760725849891,-1958.0,0.00035732,60]
[391677008,1760725849900,-500.0,0.00035732,2]
[391677010,1760725849909,-1581.0,0.00035732,60]
[391677012,1760725849919,-664.0,0.00035732,60]
[391677014,1760725849928,-500.0,0.00035732,60]
[391677016,1760725849937,-500.0,0.00035732,60]
[391677018,1760725849947,-500.0,0.00035732,60]
[391677020,1760725849956,-464.0,0.00035732,60]
[391677022,1760725849966,-500.0,0.00035786,2]
[391677024,1760725849975,-1958.0,0.00035786,60]
[391677026,1760725849984,-500.0,0.00035786,2]
[391677028,1760725849993,-1581.0,0.00035786,60]
[391677030,1760725850002,-664.0,0.00035786,60]
[391677032,1760725850012,-150.0,0.00035786,60]
[391677034,1760725850021,-209.80207027,0.00035786,60]
[391677036,1760725850029,-500.0,0.00035786,60]
[391677038,1760725850038,-464.0,0.00035786,60]
[391677040,1760725850048,-181.0,0.000358,120]
[391677042,1760725850057,-500.0,0.000358,5]
[391677044,1760725850066,-640.81948005,0.000358,5]
[391677046,1760725850074,-500.0,0.00035841,2]
[391677048,1760725850084,-1958.0,0.00035841,60]
[391677050,1760725850093,-500.0,0.00035841,2]
[391677052,1760725850102,-1581.0,0.00035841,60]
[391677054,1760725850113,-664.0,0.00035841,60]
[391677056,1760725850122,-503.39807128,0.00035841,60]
[391677058,1760725850132,-464.0,0.00035841,60]
[391677060,1760725850141,-4537.6760399,0.0003585,60]
[391677062,1760725850150,-152.53651065,0.00035896,2]
[391677064,1760725850159,-1958.0,0.00035896,60]
[391677066,1760725850168,-500.0,0.00035896,2]
[391677068,1760725850178,-1581.0,0.00035896,60]
[391677070,1760725850187,-664.0,0.00035896,60]
[391677072,1760725850198,-464.0,0.00035896,60]
[391677074,1760725850208,-1958.0,0.00035951,60]
[391677076,1760725850218,-500.0,0.00035951,2]
[391677078,1760725850227,-1581.0,0.00035951,60]
[391677080,1760725850239,-664.0,0.00035951,60]
[391677082,1760725850248,-464.0,0.00035951,60]
[391677084,1760725850257,-473.45931262,0.00035956,17]
[391677086,1760725850267,-500.0,0.00035956,17]
[391677088,1760725850276,-500.0,0.00035956,17]
[391677090,1760725850287,-500.0,0.00035956,17]
[391677092,1760725850297,-1189.7,0.00035956,17]
[391677094,1760725850308,-831.62,0.00035956,17]
[391677096,1760725850319,-573.71,0.00035956,17]
[391677098,1760725850328,-2653.06,0.00035956,17]
[391677100,1760725850337,-500.0,0.00035956,17]
[391677102,1760725850347,-500.0,0.00035956,17]
[391677104,1760725850357,-590.31518556,0.00035956,17]
[391677106,1760725850366,-500.0,0.00035956,17]
[391677108,1760725850376,-500.0,0.00035956,17]
[391677110,1760725850385,-500.0,0.00035956,17]
[391677112,1760725850395,-500.0,0.00035956,17]
[391677114,1760725850404,-606.74,0.00035956,17]
[391677116,1760725850413,-1000.0,0.00035956,17]
[391677118,1760725850424,-500.0,0.00035956,17]
[391677120,1760725850435,-500.0,0.00035956,17]
[391677122,1760725850446,-500.0,0.00035956,17]
[391677124,1760725850456,-500.0,0.00035956,17]
[391677126,1760725850465,-500.0,0.00035956,17]
[391677128,1760725850475,-1000.0,0.00035999,30]
[391677130,1760725850485,-50026.49511703,0.00036,6]
[391677132,1760725850494,-10677.0561883,0.00036,2]
[391677134,1760725850503,-234.82294058,0.00036,120]
[391677136,1760725850513,-153.0,0.00036,120]
[391677138,1760725850523,-1958.0,0.00036006,60]
[391677140,1760725850532,-500.0,0.00036006,2]
[391677142,1760725850541,-1581.0,0.00036006,60]
[391677144,1760725850551,-664.0,0.00036006,60]
[391677146,1760725850560,-464.0,0.00036006,60]
[391677148,1760725850569,-1958.0,0.0003606,60]
[391677150,1760725850579,-500.0,0.0003606,2]
[391677152,1760725850588,-1581.0,0.0003606,60]
[391677154,1760725850597,-664.0,0.0003606,60]
[391677156,1760725850607,-464.0,0.0003606,60]
[391677158,1760725850616,-5675.61729623,0.00036092,2]
[391677160,1760725850625,-1958.0,0.00036115,60]
[391677162,1760725850635,-500.0,0.00036115,2]
[391677164,1760725850644,-1581.0,0.00036115,60]
[391677166,1760725850653,-664.0,0.00036115,60]
[391677168,1760725850663,-464.0,0.00036115,60]
[391677170,1760725850675,-2000.0,0.00036149,120]
[391677172,1760725850685,-1958.0,0.0003617,60]
[391677174,1760725850695,-500.0,0.0003617,2]
[391677176,1760725850704,-1581.0,0.0003617,60]
[391677178,1760725850714,-664.0,0.0003617,60]
[391677180,1760725850723,-464.0,0.0003617,60]
[391677182,1760725850732,-1958.0,0.00036225,60]
[391677184,1760725850742,-500.0,0.00036225,2]
[391677186,1760725850751,-1581.0,0.00036225,60]
[391677188,1760725850761,-664.0,0.00036225,60]
[391677190,1760725850770,-464.0,0.00036225,60]
[391677192,1760725850779,-150.0,0.00036225,2]
[391677194,1760725850789,-150.0,0.00036225,2]
[391677196,1760725850799,-150.0,0.00036225,2]
[391677198,1760725850808,-150.0,0.00036225,2]
[391677200,1760725850818,-150.0,0.00036225,2]
[391677202,1760725850828,-150.0,0.00036225,2]
[391677204,1760725850837,-150.0,0.00036225,2]
[391677206,1760725850846,-500.0,0.00036225,2]
[391677208,1760725850855,-500.0,0.00036225,2]
[391677210,1760725850865,-150.0,0.00036225,2]
[391677212,1760725850874,-500.0,0.00036225,2]
[391677214,1760725850884,-150.0,0.00036225,2]
[391677216,1760725850894,-500.0,0.00036225,2]
[391677218,1760725850903,-500.0,0.00036225,2]
[391677220,1760725850912,-150.0,0.00036225,2]
[391677222,1760725850922,-500.0,0.00036225,2]
[391677224,1760725850932,-150.0,0.00036225,2]
[391677226,1760725850942,-667.0,0.00036225,2]
[391677228,1760725850951,-500.0,0.00036225,2]
[391677230,1760725850961,-500.0,0.0003623,17]
[391677232,1760725850971,-500.0,0.0003623,17]
[391677234,1760725850980,-500.0,0.0003623,17]
[391677236,1760725850989,-1189.7,0.0003623,17]
[391677238,1760725850998,-831.62,0.0003623,17]
[391677240,1760725851008,-573.71,0.0003623,17]
[391677243,1760725851017,-2653.06,0.0003623,17]
[391677244,1760725851027,-500.0,0.0003623,17]
[391677246,1760725851037,-500.0,0.0003623,17]
[391677249,1760725851047,-459.13,0.0003623,17]
[391677251,1760725851056,-500.0,0.0003623,17]
[391677253,1760725851065,-500.0,0.0003623,17]
[391677254,1760725851074,-500.0,0.0003623,17]
[391677256,1760725851084,-606.74,0.0003623,17]
[391677258,1760725851093,-326.64,0.0003623,17]
[391677260,1760725851103,-500.0,0.0003623,17]
[391677262,1760725851112,-500.0,0.0003623,17]
[391677264,1760725851122,-500.0,0.0003623,17]
[391677267,1760725851134,-348.85478134,0.00036233,15]
[391677269,1760725851143,-1958.0,0.0003628,60]
[391677271,1760725851153,-500.0,0.0003628,2]
[391677273,1760725851162,-1581.0,0.0003628,60]
[391677275,1760725851171,-664.0,0.0003628,60]
[391677281,1760725851222,-464.0,0.0003628,60]
[391677283,1760725851235,-500.0,0.0003628,2]
[391677285,1760725851246,-500.0,0.0003628,2]
[391677287,1760725851255,-500.0,0.0003628,2]
[391677289,1760725851264,-500.0,0.0003628,2]
[391677291,1760725851275,-496.19407106,0.0003628,2]
[391677293,1760725851284,-667.0,0.0003628,2]
[391677295,1760725851293,-500.0,0.0003628,2]
[391677297,1760725851303,-1958.0,0.00036334,60]
[391677299,1760725851314,-500.0,0.00036334,2]
[391677300,1760725851323,-1581.0,0.00036334,60]
[391677301,1760725851332,-664.0,0.00036334,60]
[391677302,1760725851341,-464.0,0.00036334,60]
[391677303,1760725851350,-500.0,0.00036335,2]
[391677304,1760725851360,-500.0,0.00036335,2]
[391677305,1760725851369,-500.0,0.00036335,2]
[391677306,1760725851378,-477.79108516,0.00036335,2]
[391677307,1760725851387,-667.0,0.00036335,2]
[391677308,1760725851396,-500.0,0.00036335,2]
[391677309,1760725851405,-500.0,0.00036348,5]
[391677310,1760725851415,-150.0,0.00036362,120]
[391677312,1760725851425,-1091.0,0.00036368,5]
[391677314,1760725851434,-1958.0,0.00036389,60]
[391677316,1760725851445,-500.0,0.00036389,2]
[391677318,1760725851455,-1581.0,0.00036389,60]
[391677320,1760725851464,-664.0,0.00036389,60]
[391677322,1760725851473,-464.0,0.00036389,60]
[391677324,1760725851483,-500.0,0.00036389,2]
[391677326,1760725851492,-492.75296998,0.00036389,2]
[391677328,1760725851502,-500.0,0.00036389,2]
[391677330,1760725851511,-667.0,0.00036389,2]
[391677332,1760725851520,-500.0,0.00036389,2]
[391677334,1760725851529,-1958.0,0.00036444,60]
[391677336,1760725851538,-500.0,0.00036444,2]
[391677338,1760725851548,-1581.0,0.00036444,60]
[391677340,1760725851557,-664.0,0.00036444,60]
[391677342,1760725851566,-464.0,0.00036444,60]
[391677344,1760725851576,-500.0,0.00036444,2]
[391677346,1760725851585,-667.0,0.00036444,2]
[391677348,1760725851594,-500.0,0.00036444,2]
[391677350,1760725851603,-1958.0,0.00036499,60]
[391677352,1760725851613,-500.0,0.00036499,2]
[391677354,1760725851622,-1581.0,0.00036499,60]
[391677356,1760725851631,-664.0,0.00036499,60]
[391677358,1760725851641,-464.0,0.00036499,60]
[391677360,1760725851651,-500.0,0.00036499,2]
[391677362,1760725851660,-667.0,0.00036499,2]
[391677364,1760725851669,-500.0,0.00036499,2]
[391677366,1760725851678,-181.0,0.000365,120]
[391677368,1760725851688,-2680.44359193,0.000365,120]
[391677370,1760725851698,-500.0,0.00036504,17]
[391677372,1760725851707,-500.0,0.00036504,17]
[391677374,1760725851716,-500.0,0.00036504,17]
[391677376,1760725851725,-1189.7,0.00036504,17]
[391677378,1760725851734,-831.62,0.00036504,17]
[391677380,1760725851743,-573.71,0.00036504,17]
[391677382,1760725851752,-2653.06,0.00036504,17]
[391677384,1760725851762,-500.0,0.00036504,17]
[391677386,1760725851771,-500.0,0.00036504,17]
[391677388,1760725851780,-500.0,0.00036504,17]
[391677389,1760725851789,-500.0,0.00036504,17]
[391677391,1760725851798,-613.78,0.00036504,17]
[391677393,1760725851808,-606.74,0.00036504,17]
[391677395,1760725851817,-500.0,0.00036504,17]
[391677397,1760725851827,-500.0,0.00036504,17]
[391677399,1760725851836,-1958.0,0.00036553,60]
[391677401,1760725851845,-500.0,0.00036553,2]
[391677403,1760725851855,-1581.0,0.00036553,60]
[391677405,1760725851864,-664.0,0.00036553,60]
[391677407,1760725851873,-464.0,0.00036553,60]
[391677409,1760725851882,-500.0,0.00036554,2]
[391677411,1760725851891,-667.0,0.00036554,2]
[391677413,1760725851900,-500.0,0.00036554,2]
[391677415,1760725851909,-184.05,0.00036597,2]
[391677417,1760725851918,-1962.83111882,0.00036608,60]
[391677419,1760725851928,-500.0,0.00036608,2]
[391677421,1760725851938,-1592.90832584,0.00036608,60]
[391677423,1760725851949,-687.74044726,0.00036608,60]
[391677425,1760725851959,-478.0,0.00036608,60]
[391677428,1760725851969,-360.80223538,0.00036609,2]
[391677429,1760725851978,-667.0,0.00036609,2]
[391677432,1760725851988,-500.0,0.00036609,2]
[391677433,1760725851998,-500.0,0.00036663,2]
[391677435,1760725852007,-667.0,0.00036663,2]
[391677437,1760725852016,-500.0,0.00036663,2]
[391677439,1760725852025,-10662.02,0.000367,2]
[391677442,1760725852035,-1612.58918486,0.000367,120]
[391677444,1760725852046,-500.0,0.00036718,2]
[391677446,1760725852055,-667.0,0.00036718,2]
[391677448,1760725852064,-500.0,0.00036718,2]
[391677449,1760725852073,-218.24295797,0.00036733,120]
[391677451,1760725852083,-500.0,0.00036773,2]
[391677453,1760725852092,-667.0,0.00036773,2]
[391677455,1760725852101,-500.0,0.00036773,2]
[391677457,1760725852111,-161.76830817,0.00036774,2]
[391677459,1760725852123,-500.0,0.00036778,17]
[391677461,1760725852133,-500.0,0.00036778,17]
[391677464,1760725852143,-1189.7,0.00036778,17]
[391677466,1760725852152,-831.62,0.00036778,17]
[391677468,1760725852161,-573.71,0.00036778,17]
[391677470,1760725852170,-2653.06,0.00036778,17]
[391677472,1760725852180,-500.0,0.00036778,17]
[391677474,1760725852189,-500.0,0.00036778,17]
[391677476,1760725852200,-500.0,0.00036778,17]
[391677478,1760725852209,-500.0,0.00036778,17]
[391677480,1760725852219,-606.74,0.00036778,17]
[391677482,1760725852228,-632.33,0.00036778,17]
[391677484,1760725852242,-500.0,0.00036778,17]
[391677485,1760725852251,-30980.0,0.000368,2]
[391677488,1760725852261,-274.62495453,0.00036822,2]
[391677490,1760725852271,-500.0,0.00036827,2]
[391677492,1760725852282,-667.0,0.00036828,2]
[391677494,1760725852292,-500.0,0.00036828,2]
[391677496,1760725852301,-500.0,0.00036882,2]
[391677498,1760725852311,-667.0,0.00036883,2]
[391677500,1760725852321,-360.07321422,0.00036883,2]
[391677502,1760725852330,-150.0,0.00036903,120]
[391677504,1760725852340,-13885.18138166,0.0003691,2]
[391677505,1760725852351,-500.0,0.00036937,2]
[391677508,1760725852361,-667.0,0.00036937,2]
[391677510,1760725852371,-500.0,0.00036992,2]
[391677512,1760725852380,-667.0,0.00036992,2]
[391677514,1760725852389,-1000.0,0.00037,2]
[391677516,1760725852399,-1000.0,0.00037,2]
[391677518,1760725852408,-1000.0,0.00037,2]
[391677520,1760725852417,-1000.0,0.00037,2]
[391677521,1760725852426,-1000.0,0.00037,2]
[391677523,1760725852435,-2100.0,0.00037,120]
[391677525,1760725852446,-1000.0,0.00037,2]
[391677527,1760725852456,-1000.0,0.00037,2]
[391677529,1760725852466,-1000.0,0.00037,2]
[391677531,1760725852476,-1000.0,0.00037,2]
[391677533,1760725852486,-1235.24595007,0.00037,30]
[391677536,1760725852502,-1000.0,0.00037,2]
[391677538,1760725852512,-153.0,0.00037,120]
[391677540,1760725852521,-500.0,0.00037047,2]
[391677542,1760725852530,-667.0,0.00037047,2]
[391677544,1760725852543,-500.0,0.00037052,17]
[391677546,1760725852554,-500.0,0.00037052,17]
[391677548,1760725852563,-1189.7,0.00037052,17]
[391677550,1760725852579,-831.62,0.00037052,17]
[391677552,1760725852589,-573.71,0.00037052,17]
[391677554,1760725852598,-2653.06,0.00037052,17]
[391677556,1760725852607,-591.19826866,0.00037052,17]
[391677558,1760725852616,-465.39809836,0.00037052,17]
[391677560,1760725852625,-500.0,0.00037052,17]
[391677562,1760725852634,-383.41,0.00037052,17]
[391677564,1760725852643,-606.74,0.00037052,17]
[391677567,1760725852655,-500.0,0.00037052,17]
[391677569,1760725852665,-500.0,0.00037096,2]
[391677571,1760725852674,-5568.41,0.000371,14]
[391677573,1760725852683,-500.0,0.00037101,2]
[391677575,1760725852692,-667.0,0.00037102,2]
[391677577,1760725852703,-150.0,0.00037132,120]
[391677579,1760725852713,-155.96205694,0.00037156,2]
[391677580,1760725852722,-667.0,0.00037157,2]
[391677582,1760725852732,-224.52,0.0003717,2]
[391677584,1760725852742,-181.0,0.000372,120]
[391677587,1760725852751,-290.62217231,0.000372,120]
[391677588,1760725852761,-290.62217228,0.000372,120]
[391677591,1760725852770,-290.62217228,0.000372,120]
[391677592,1760725852780,-667.0,0.00037211,2]
[391677594,1760725852790,-667.0,0.00037266,2]
[391677596,1760725852799,-5512.0,0.000373,3]
[391677598,1760725852809,-667.0,0.00037321,2]
[391677600,1760725852819,-580.64,0.00037326,17]
[391677602,1760725852829,-484.85,0.00037326,17]
[391677604,1760725852838,-1189.7,0.00037326,17]
[391677606,1760725852848,-831.62,0.00037326,17]
[391677609,1760725852859,-573.71,0.00037326,17]
[391677610,1760725852868,-2653.06,0.00037326,17]
[391677612,1760725852878,-500.0,0.00037326,17]
[391677614,1760725852887,-606.74,0.00037326,17]
[391677616,1760725852896,-500.0,0.00037326,17]
[391677618,1760725852905,-290.62217228,0.0003735,120]
[391677620,1760725852914,-667.0,0.00037376,2]
[391677622,1760725852924,-196620.84056583,0.0003739,14]
[391677624,1760725852933,-667.0,0.0003743,2]
[391677626,1760725852943,-689.02140405,0.00037485,2]
[391677628,1760725852952,-200.0,0.000375,120]
[391677630,1760725852962,-4258.75807104,0.0003759,2]
[391677632,1760725852972,-500.0,0.00037595,2]
[391677634,1760725852981,-1189.7,0.000376,17]
[391677636,1760725852990,-831.62,0.000376,17]
[391677638,1760725852999,-573.71,0.000376,17]
[391677640,1760725853008,-2653.06,0.000376,17]
[391677642,1760725853018,-500.0,0.000376,17]
[391677644,1760725853027,-606.74,0.000376,17]
[391677646,1760725853037,-642.4839588,0.000376,17]
[391677648,1760725853046,-2000.0,0.00037749,120]
[391677650,1760725853055,-500.0,0.00037749,120]
[391677652,1760725853066,-500.0,0.0003777,15]
[391677654,1760725853075,-556.0,0.00037869,120]
[391677656,1760725853085,-1189.7,0.00037874,17]
[391677659,1760725853095,-831.62,0.00037874,17]
[391677660,1760725853103,-573.71,0.00037874,17]
[391677662,1760725853113,-2653.06,0.00037874,17]
[391677664,1760725853122,-500.0,0.00037874,17]
[391677666,1760725853131,-606.74,0.00037874,17]
[391677668,1760725853140,-198.59470764,0.0003788,2]
[391677670,1760725853149,-181.0,0.000379,120]
[391677672,1760725853158,-5512.0,0.000379,5]
[391677675,1760725853169,-787.81930216,0.00037999,120]
[391677677,1760725853179,-1864.84505202,0.00038,120]
[391677679,1760725853188,-273.33284429,0.00038,120]
[391677681,1760725853199,-153.0,0.00038,120]
[391677683,1760725853209,-1864.0,0.000381,2]
[391677685,1760725853218,-1336.03475588,0.0003814,2]
[391677687,1760725853228,-1189.7,0.00038148,17]
[391677689,1760725853243,-831.62,0.00038148,17]
[391677691,1760725853252,-573.71,0.00038148,17]
[391677693,1760725853262,-2653.06,0.00038148,17]
[391677695,1760725853273,-500.0,0.00038148,17]
[391677697,1760725853284,-606.74,0.00038148,17]
[391677699,1760725853294,-2031.9,0.00038185,2]
[391677701,1760725853305,-1091.0,0.00038282,5]
[391677704,1760725853317,-10168.8625,0.00038356,6]
[391677706,1760725853328,-1189.7,0.00038422,17]
[391677708,1760725853337,-831.62,0.00038422,17]
[391677710,1760725853347,-573.71,0.00038422,17]
[391677712,1760725853356,-2653.06,0.00038422,17]
[391677714,1760725853368,-500.0,0.00038422,17]
[391677716,1760725853378,-606.74,0.00038422,17]
[391677718,1760725853388,-300.0,0.00038472,2]
[391677720,1760725853398,-546.7,0.00038472,2]
[391677722,1760725853408,-546.7,0.00038472,2]
[391677724,1760725853418,-1199.37,0.00038472,2]
[391677726,1760725853428,-176.05,0.00038472,2]
[391677728,1760725853438,-695.27,0.00038472,2]
[391677730,1760725853450,-413.65,0.00038472,2]
[391677732,1760725853460,-953.38,0.00038472,2]
[391677735,1760725853470,-150.0,0.00038472,2]
[391677737,1760725853481,-168.24,0.00038472,2]
[391677738,1760725853490,-546.7,0.00038472,2]
[391677740,1760725853500,-546.7,0.00038472,2]
[391677742,1760725853509,-176.05,0.00038472,2]
[391677745,1760725853519,-1199.37,0.00038472,2]
[391677747,1760725853529,-695.27,0.00038472,2]
[391677748,1760725853538,-413.65,0.00038472,2]
[391677751,1760725853548,-168.24,0.00038472,2]
[391677753,1760725853558,-150.0,0.00038472,2]
[391677755,1760725853567,-546.7,0.00038472,2]
[391677757,1760725853577,-546.7,0.00038472,2]
[391677759,1760725853586,-413.65,0.00038472,2]
[391677761,1760725853595,-1199.37,0.00038472,2]
[391677763,1760725853604,-168.24,0.00038472,2]
[391677764,1760725853615,-150.0,0.00038472,2]
[391677767,1760725853626,-695.27,0.00038472,2]
[391677769,1760725853636,-546.7,0.00038472,2]
[391677771,1760725853646,-546.7,0.00038472,2]
[391677773,1760725853656,-546.7,0.00038472,2]
[391677775,1760725853666,-1199.37,0.00038472,2]
[391677777,1760725853677,-413.65,0.00038472,2]
[391677779,1760725853687,-150.0,0.00038472,2]
[391677781,1760725853704,-168.24,0.00038472,2]
[391677783,1760725853715,-695.27,0.00038472,2]
[391677785,1760725853725,-546.7,0.00038472,2]
[391677787,1760725853735,-413.65,0.00038472,2]
[391677789,1760725853745,-168.24,0.00038472,2]
[391677791,1760725853755,-1199.37,0.00038472,2]
[391677793,1760725853765,-150.0,0.00038472,2]
[391677796,1760725853775,-546.7,0.00038472,2]
[391677798,1760725853784,-695.27,0.00038472,2]
[391677800,1760725853794,-546.7,0.00038472,2]
[391677802,1760725853804,-546.7,0.00038472,2]
[391677804,1760725853814,-150.0,0.00038472,2]
[391677806,1760725853823,-546.7,0.00038472,2]
[391677807,1760725853832,-1199.37,0.00038472,2]
[391677810,1760725853843,-413.65,0.00038472,2]
[391677812,1760725853853,-168.24,0.00038472,2]
[391677814,1760725853862,-858.95,0.00038472,2]
[391677816,1760725853872,-413.65,0.00038472,2]
[391677817,1760725853882,-1199.37,0.00038472,2]
[391677818,1760725853892,-168.24,0.00038472,2]
[391677819,1760725853902,-1199.37,0.00038472,2]
[391677820,1760725853912,-413.65,0.00038472,2]
[391677821,1760725853922,-168.24,0.00038472,2]
[391677822,1760725853932,-1199.37,0.00038472,2]
[391677823,1760725853942,-413.65,0.00038472,2]
[391677824,1760725853952,-168.24,0.00038472,2]
[391677825,1760725853963,-413.65,0.00038472,2]
[391677826,1760725853973,-168.24,0.00038472,2]
[391677828,1760725853983,-413.65,0.00038472,2]
[391677830,1760725853993,-327.48,0.00038472,2]
[391677831,1760725854003,-413.65,0.00038472,2]
[391677833,1760725854013,-536.82,0.00038472,2]
[391677835,1760725854023,-175.82,0.00038472,2]
[391677838,1760725854033,-150.0,0.00038472,2]
[391677840,1760725854044,-150.66,0.00038472,2]
[391677842,1760725854054,-1199.37,0.00038472,2]
[391677844,1760725854064,-334.87,0.00038472,2]
[391677846,1760725854074,-150.0,0.00038472,2]
[391677848,1760725854084,-374.54,0.00038472,2]
[391677850,1760725854093,-150.0,0.00038472,2]
[391677852,1760725854104,-150.0,0.00038472,2]
[391677854,1760725854114,-1199.37,0.00038472,2]
[391677856,1760725854124,-150.0,0.00038472,2]
[391677858,1760725854134,-150.0,0.00038472,2]
[391677860,1760725854144,-150.0,0.00038472,2]
[391677862,1760725854154,-150.0,0.00038472,2]
[391677864,1760725854164,-150.0,0.00038472,2]
[391677866,1760725854174,-1199.37,0.00038472,2]
[391677868,1760725854184,-150.0,0.00038472,2]
[391677870,1760725854194,-150.0,0.00038472,2]
[391677872,1760725854203,-312.72,0.00038472,2]
[391677874,1760725854213,-1199.37,0.00038472,2]
[391677876,1760725854223,-150.0,0.00038472,2]
[391677878,1760725854234,-1199.37,0.00038472,2]
[391677880,1760725854247,-150.0,0.00038472,2]
[391677882,1760725854257,-1199.37,0.00038472,2]
[391677884,1760725854267,-150.0,0.00038472,2]
[391677886,1760725854277,-1199.37,0.00038472,2]
[391677888,1760725854287,-1199.37,0.00038472,2]
[391677890,1760725854296,-150.0,0.00038472,2]
[391677892,1760725854306,-150.0,0.00038472,2]
[391677894,1760725854318,-1199.37,0.00038472,2]
[391677896,1760725854328,-150.0,0.00038472,2]
[391677898,1760725854338,-150.0,0.00038472,2]
[391677900,1760725854348,-151.04,0.00038472,2]
[391677902,1760725854357,-321.22,0.00038472,2]
[391677904,1760725854367,-500.0,0.00038473,2]
[391677906,1760725854378,-1183.0,0.00038474,2]
[391677908,1760725854388,-2546.0,0.00038474,2]
[391677910,1760725854397,-749.0,0.00038474,2]
[391677912,1760725854407,-3356.0,0.00038474,2]
[391677915,1760725854418,-3408.0,0.00038474,2]
[391677917,1760725854429,-10662.02,0.000385,30]
[391677919,1760725854438,-181.0,0.000386,120]
[391677921,1760725854449,-3013.89087524,0.000386,120]
[391677923,1760725854459,-150.0,0.00038637,120]
[391677925,1760725854469,-1189.7,0.00038696,17]
[391677927,1760725854479,-831.62,0.00038696,17]
[391677929,1760725854489,-573.71,0.00038696,17]
[391677931,1760725854499,-2653.06,0.00038696,17]
[391677933,1760725854509,-517.39,0.00038696,17]
[391677935,1760725854519,-606.74,0.00038696,17]
[391677937,1760725854528,-202.585796,0.00038781,7]
[391677939,1760725854538,-518.66598556,0.00038795,7]
[391677941,1760725854547,-2017.44441733,0.000388,120]
[391677943,1760725854557,-3081.27788322,0.0003889,30]
[391677945,1760725854567,-1700.0,0.000389,14]
[391677948,1760725854578,-161.76830821,0.00038937,2]
[391677950,1760725854589,-500.0,0.00038965,2]
[391677952,1760725854598,-1189.7,0.0003897,17]
[391677954,1760725854608,-831.62,0.0003897,17]
[391677956,1760725854618,-573.71,0.0003897,17]
[391677958,1760725854628,-2653.06,0.0003897,17]
[391677960,1760725854637,-606.74,0.0003897,17]
[391677962,1760725854647,-7761.65259511,0.0003899,14]
[391677964,1760725854657,-2389.14022544,0.0003899,120]
[391677966,1760725854667,-300.0,0.00038999,10]